[Event "*** Titled Tuesday Blitz"]
[Site "Chess.com"]
[Date "2020.12.01"]
[Round "9"]
[White "gochatoria98"]
[Black "queen_iryna"]
[Result "0-1"]
[WhiteElo "2144"]
[BlackElo "2313"]
[TimeControl "180+1"]
[EndTime "11:44:03 PST"]
[Termination "queen_iryna won on time"]

1. e4 {[%clk 0:02:50.2]} 1... d6 {[%clk 0:02:59.9]} 2. d4 {[%clk 0:02:49.8]}
2... Nf6 {[%clk 0:03:00.5]} 3. Nc3 {[%clk 0:02:49.5]} 3... e5 {[%clk 0:03:00.5]}
4. Nf3 {[%clk 0:02:46.9]} 4... Nbd7 {[%clk 0:03:00]} 5. Bc4 {[%clk 0:02:45.5]}
5... Be7 {[%clk 0:02:59.2]} 6. O-O {[%clk 0:02:41.8]} 6... O-O {[%clk
0:02:58.5]} 7. h3 {[%clk 0:02:40.9]} 7... c6 {[%clk 0:02:56.6]} 8. a4 {[%clk
0:02:40.7]} 8... h6 {[%clk 0:02:56.2]} 9. Be3 {[%clk 0:02:40.7]} 9... Re8 {[%clk
0:02:54.1]} 10. Qd2 {[%clk 0:02:33.1]} 10... Bf8 {[%clk 0:02:46.3]} 11. Rad1
{[%clk 0:02:29.5]} 11... exd4 {[%clk 0:02:37.6]} 12. Nxd4 {[%clk 0:02:28.9]}
12... Nxe4 {[%clk 0:02:28.6]} 13. Nxe4 {[%clk 0:02:28.1]} 13... Rxe4 {[%clk
0:02:29.5]} 14. Bd3 {[%clk 0:02:15.9]} 14... Re8 {[%clk 0:02:29]} 15. a5 {[%clk
0:02:01.2]} 15... Ne5 {[%clk 0:02:25.2]} 16. a6 {[%clk 0:01:57.2]} 16... c5
{[%clk 0:02:06.8]} 17. Nf5 {[%clk 0:01:35.1]} 17... Nxd3 {[%clk 0:02:06.6]} 18.
Qxd3 {[%clk 0:01:35.1]} 18... Bxf5 {[%clk 0:02:06.5]} 19. Qxf5 {[%clk
0:01:34.9]} 19... bxa6 {[%clk 0:02:06.6]} 20. Rd5 {[%clk 0:01:30.1]} 20... Qc8
{[%clk 0:01:58.2]} 21. Qf3 {[%clk 0:01:25]} 21... Qb7 {[%clk 0:01:51.4]} 22. b3
{[%clk 0:01:24.8]} 22... Re6 {[%clk 0:01:36.7]} 23. Rfd1 {[%clk 0:01:23.2]}
23... Rae8 {[%clk 0:01:34.1]} 24. Kh2 {[%clk 0:01:07.9]} 24... a5 {[%clk
0:01:24.7]} 25. Bf4 {[%clk 0:01:07.8]} 25... Rf6 {[%clk 0:01:09.5]} 26. Qg3
{[%clk 0:00:58.6]} 26... Re2 {[%clk 0:00:59.3]} 27. Be3 {[%clk 0:00:42.5]} 27...
Rg6 {[%clk 0:00:53.8]} 28. Qf4 {[%clk 0:00:29.9]} 28... Rxc2 {[%clk 0:00:50.2]}
29. h4 {[%clk 0:00:17]} 29... Qxb3 {[%clk 0:00:40.1]} 30. h5 {[%clk 0:00:14.6]}
30... Rf6 {[%clk 0:00:39]} 31. Qg3 {[%clk 0:00:13]} 31... Rb2 {[%clk 0:00:28]}
32. R1d3 {[%clk 0:00:11.5]} 32... Qc4 {[%clk 0:00:24.2]} 33. Rd1 {[%clk
0:00:05.7]} 33... a4 {[%clk 0:00:23.7]} 34. R5d3 {[%clk 0:00:04.8]} 34... Rb3
{[%clk 0:00:21.5]} 35. Rxb3 {[%clk 0:00:03]} 35... axb3 {[%clk 0:00:22.4]} 36.
Rc1 {[%clk 0:00:02.6]} 36... Qd5 {[%clk 0:00:21.3]} 37. Bd2 {[%clk 0:00:02.4]}
37... b2 {[%clk 0:00:20]} 38. Rd1 {[%clk 0:00:01.8]} 38... b1=Q {[%clk
0:00:18.9]} 39. Rxb1 {[%clk 0:00:02]} 39... Qxd2 {[%clk 0:00:18.5]} 40. Rb8
{[%clk 0:00:01.4]} 40... Rxf2 {[%clk 0:00:16.5]} 0-1

[Event "*** Titled Tuesday Blitz"]
[Site "Chess.com"]
[Date "2020.12.01"]
[Round "9"]
[White "Gusarov91"]
[Black "woodhy"]
[Result "1-0"]
[WhiteElo "2639"]
[BlackElo "2461"]
[TimeControl "180+1"]
[EndTime "11:44:04 PST"]
[Termination "Gusarov91 won by resignation"]

1. d4 {[%clk 0:03:00.9]} 1... Nf6 {[%clk 0:02:58.4]} 2. Nf3 {[%clk 0:03:01.3]}
2... e6 {[%clk 0:02:58.7]} 3. c4 {[%clk 0:03:01.7]} 3... b6 {[%clk 0:02:59.1]}
4. g3 {[%clk 0:03:02.1]} 4... Bb7 {[%clk 0:02:59.5]} 5. Bg2 {[%clk 0:03:02.5]}
5... Be7 {[%clk 0:02:59.9]} 6. O-O {[%clk 0:03:02.5]} 6... O-O {[%clk
0:03:00.1]} 7. d5 {[%clk 0:03:02.9]} 7... exd5 {[%clk 0:02:58.9]} 8. Nh4 {[%clk
0:03:03.4]} 8... c6 {[%clk 0:02:59.2]} 9. cxd5 {[%clk 0:03:03.2]} 9... Nxd5
{[%clk 0:02:57.5]} 10. Nf5 {[%clk 0:03:03.7]} 10... Bf6 {[%clk 0:02:57.3]} 11.
e4 {[%clk 0:03:03.8]} 11... Ne7 {[%clk 0:02:54]} 12. Nd6 {[%clk 0:03:03.6]}
12... Ba6 {[%clk 0:02:54]} 13. Re1 {[%clk 0:03:04]} 13... Ng6 {[%clk 0:02:53.8]}
14. f4 {[%clk 0:02:59.6]} 14... Be7 {[%clk 0:02:49.8]} 15. e5 {[%clk 0:02:56.4]}
15... Bxd6 {[%clk 0:02:44.7]} 16. Qxd6 {[%clk 0:02:55.5]} 16... Re8 {[%clk
0:02:41.5]} 17. Nc3 {[%clk 0:02:54.1]} 17... Qe7 {[%clk 0:02:35.1]} 18. Bd2
{[%clk 0:02:29.6]} 18... Qxd6 {[%clk 0:01:27.3]} 19. exd6 {[%clk 0:02:26.8]}
19... Rxe1+ {[%clk 0:01:28.2]} 20. Rxe1 {[%clk 0:02:26.3]} 20... Bb7 {[%clk
0:01:25.9]} 21. Re8+ {[%clk 0:02:23.9]} 21... Nf8 {[%clk 0:01:25.3]} 22. Nb5
{[%clk 0:02:12.7]} 22... Na6 {[%clk 0:01:23.6]} 23. Rxa8 {[%clk 0:02:11.9]}
23... Bxa8 {[%clk 0:01:24.5]} 24. Nxa7 {[%clk 0:02:12.2]} 24... Nc5 {[%clk
0:01:07.3]} 25. Nc8 {[%clk 0:02:04]} 25... b5 {[%clk 0:01:04.3]} 26. Ne7+ {[%clk
0:02:00.3]} 26... Kh8 {[%clk 0:01:03.7]} 27. Be3 {[%clk 0:01:59.2]} 27... Nd3
{[%clk 0:00:46.7]} 28. b3 {[%clk 0:01:53.3]} 28... Ne6 {[%clk 0:00:26.2]} 29. a4
{[%clk 0:01:42.3]} 29... bxa4 {[%clk 0:00:21.7]} 30. bxa4 {[%clk 0:01:42.5]}
30... Nd8 {[%clk 0:00:20.1]} 31. a5 {[%clk 0:01:40.9]} 31... Nb7 {[%clk
0:00:20.1]} 32. Nxc6 {[%clk 0:01:37.3]} 32... Nxd6 {[%clk 0:00:13.4]} 33. Ne5
{[%clk 0:01:30.4]} 33... Bxg2 {[%clk 0:00:14.3]} 34. Kxg2 {[%clk 0:01:28.3]}
34... Nb4 {[%clk 0:00:14.4]} 35. Bc5 {[%clk 0:01:25.7]} 35... Nc6 {[%clk
0:00:12.2]} 36. Bxd6 {[%clk 0:01:25.4]} 36... Nxa5 {[%clk 0:00:12.1]} 37. Nxf7+
{[%clk 0:01:25.8]} 37... Kg8 {[%clk 0:00:12.3]} 38. Ne5 {[%clk 0:01:26.1]} 38...
Nb7 {[%clk 0:00:13.2]} 39. Bb4 {[%clk 0:01:25]} 39... d6 {[%clk 0:00:13.6]} 40.
Nc4 {[%clk 0:01:24.9]} 40... d5 {[%clk 0:00:13.5]} 41. Ne3 {[%clk 0:01:25.1]}
41... d4 {[%clk 0:00:13.6]} 42. Nf5 {[%clk 0:01:25.6]} 42... d3 {[%clk
0:00:13.7]} 43. Kf3 {[%clk 0:01:25.8]} 43... g6 {[%clk 0:00:13.9]} 44. Nd4
{[%clk 0:01:21.3]} 44... Nd8 {[%clk 0:00:12.5]} 45. Ke3 {[%clk 0:01:21.2]} 45...
h5 {[%clk 0:00:13.4]} 46. Kxd3 {[%clk 0:01:21.4]} 46... Kf7 {[%clk 0:00:14.3]}
47. Ke4 {[%clk 0:01:21.9]} 47... Kf6 {[%clk 0:00:14.1]} 48. Bd6 {[%clk
0:01:20.4]} 48... Nf7 {[%clk 0:00:13.4]} 49. Be5+ {[%clk 0:01:20.6]} 49... Ke7
{[%clk 0:00:13.6]} 50. f5 {[%clk 0:01:18.7]} 50... gxf5+ {[%clk 0:00:14.1]} 51.
Nxf5+ {[%clk 0:01:18.6]} 51... Ke6 {[%clk 0:00:15]} 52. Ng7+ {[%clk 0:01:19.1]}
52... Ke7 {[%clk 0:00:14.7]} 53. Nxh5 {[%clk 0:01:19.7]} 53... Ng5+ {[%clk
0:00:15.3]} 54. Kf5 {[%clk 0:01:19.4]} 54... Nf3 {[%clk 0:00:15.5]} 55. h4
{[%clk 0:01:18.7]} 55... Kf7 {[%clk 0:00:15.8]} 56. Nf4 {[%clk 0:01:16.5]} 56...
Kg8 {[%clk 0:00:15.1]} 57. h5 {[%clk 0:01:16.7]} 57... Kh7 {[%clk 0:00:15.5]}
58. g4 {[%clk 0:01:17]} 58... Nh4+ {[%clk 0:00:13.9]} 59. Kf6 {[%clk 0:01:16.6]}
59... Nf3 {[%clk 0:00:14.3]} 60. g5 {[%clk 0:01:15.5]} 60... Nd2 {[%clk
0:00:14.6]} 61. g6+ {[%clk 0:01:15]} 61... Kh6 {[%clk 0:00:15.5]} 62. g7 {[%clk
0:01:15.3]} 62... Ne4+ {[%clk 0:00:16.4]} 63. Kf5 {[%clk 0:01:11.1]} 63... Ng3+
{[%clk 0:00:16.4]} 64. Kg4 {[%clk 0:01:11.1]} 64... Nxh5 {[%clk 0:00:16.2]} 65.
Nxh5 {[%clk 0:01:10.1]} 65... Kh7 {[%clk 0:00:15.6]} 66. Kg5 {[%clk 0:01:08.5]}
66... Kg8 {[%clk 0:00:15]} 67. Kh6 {[%clk 0:01:07.5]} 67... Kf7 {[%clk
0:00:14.4]} 68. Kh7 {[%clk 0:01:07.8]} 68... Ke6 {[%clk 0:00:15.3]} 1-0

[Event "*** Titled Tuesday Blitz"]
[Site "Chess.com"]
[Date "2020.12.01"]
[Round "9"]
[White "lucachess49"]
[Black "szachuspl"]
[Result "1-0"]
[WhiteElo "2376"]
[BlackElo "2470"]
[TimeControl "180+1"]
[EndTime "11:44:07 PST"]
[Termination "lucachess49 won by checkmate"]

1. d4 {[%clk 0:03:00.9]} 1... Nf6 {[%clk 0:02:59]} 2. c4 {[%clk 0:02:54.2]} 2...
g6 {[%clk 0:02:58.7]} 3. f3 {[%clk 0:02:52.9]} 3... Bg7 {[%clk 0:02:56.6]} 4. e4
{[%clk 0:02:52.9]} 4... O-O {[%clk 0:02:57.2]} 5. Ne2 {[%clk 0:02:52.8]} 5... d6
{[%clk 0:02:57]} 6. Nbc3 {[%clk 0:02:53.3]} 6... a6 {[%clk 0:02:51.2]} 7. Be3
{[%clk 0:02:49.5]} 7... Nc6 {[%clk 0:02:51.4]} 8. Qd2 {[%clk 0:02:49.3]} 8...
Rb8 {[%clk 0:02:51.3]} 9. Rc1 {[%clk 0:02:46.2]} 9... Bd7 {[%clk 0:02:49]} 10.
Nd1 {[%clk 0:02:44.9]} 10... b5 {[%clk 0:02:43.6]} 11. c5 {[%clk 0:02:44.3]}
11... e6 {[%clk 0:02:26.6]} 12. g3 {[%clk 0:02:15.6]} 12... Re8 {[%clk
0:02:19.1]} 13. Bg2 {[%clk 0:02:13.3]} 13... dxc5 {[%clk 0:02:18.9]} 14. Rxc5
{[%clk 0:02:12.4]} 14... Bf8 {[%clk 0:02:18.8]} 15. Rc1 {[%clk 0:02:10.9]} 15...
Bb4 {[%clk 0:02:17.6]} 16. Ndc3 {[%clk 0:01:57.5]} 16... Na5 {[%clk 0:02:17.7]}
17. b3 {[%clk 0:01:55.9]} 17... Bc8 {[%clk 0:02:06]} 18. O-O {[%clk 0:01:52.7]}
18... Bb7 {[%clk 0:02:06]} 19. Bg5 {[%clk 0:01:45.3]} 19... Be7 {[%clk
0:02:03.4]} 20. Nxb5 {[%clk 0:01:41]} 20... Nxb3 {[%clk 0:01:57.2]} 21. axb3
{[%clk 0:01:36.7]} 21... axb5 {[%clk 0:01:57.3]} 22. Bf4 {[%clk 0:01:31.7]}
22... Rc8 {[%clk 0:01:55.3]} 23. Rfd1 {[%clk 0:01:21.5]} 23... Qd7 {[%clk
0:01:47.4]} 24. Bh3 {[%clk 0:01:13.8]} 24... Nh5 {[%clk 0:01:41.5]} 25. d5
{[%clk 0:01:07.1]} 25... Nxf4 {[%clk 0:01:40.5]} 26. Nxf4 {[%clk 0:00:55.5]}
26... Qd6 {[%clk 0:01:04.8]} 27. dxe6 {[%clk 0:00:53.4]} 27... Qxd2 {[%clk
0:00:48.5]} 28. Rxd2 {[%clk 0:00:52.8]} 28... f6 {[%clk 0:00:38.8]} 29. Rd7
{[%clk 0:00:50.5]} 29... Bd6 {[%clk 0:00:32.9]} 30. e7 {[%clk 0:00:18.3]} 30...
Rb8 {[%clk 0:00:21.8]} 31. Be6+ {[%clk 0:00:13.4]} 31... Kg7 {[%clk 0:00:21.3]}
32. Bd5 {[%clk 0:00:10.7]} 32... Bxf4 {[%clk 0:00:20.1]} 33. gxf4 {[%clk
0:00:09.8]} 33... Bxd5 {[%clk 0:00:19.8]} 34. exd5 {[%clk 0:00:09.8]} 34... Kf7
{[%clk 0:00:14.7]} 35. Rcxc7 {[%clk 0:00:09.3]} 35... Ra8 {[%clk 0:00:13.1]} 36.
d6 {[%clk 0:00:09.6]} 36... Ra1+ {[%clk 0:00:13.2]} 37. Kf2 {[%clk 0:00:09.7]}
37... Rd1 {[%clk 0:00:11.9]} 38. Rd8 {[%clk 0:00:07.8]} 38... Rd2+ {[%clk
0:00:07.6]} 39. Ke3 {[%clk 0:00:06]} 39... Rxe7+ {[%clk 0:00:01.1]} 40. Rxe7#
{[%clk 0:00:04.9]} 1-0

[Event "*** Titled Tuesday Blitz"]
[Site "Chess.com"]
[Date "2020.12.01"]
[Round "9"]
[White "Mazetovic"]
[Black "wonderfultime"]
[Result "0-1"]
[WhiteElo "2723"]
[BlackElo "2933"]
[TimeControl "180+1"]
[EndTime "11:44:08 PST"]
[Termination "wonderfultime won by resignation"]

1. e4 {[%clk 0:03:00.9]} 1... c5 {[%clk 0:02:58]} 2. Nf3 {[%clk 0:03:00.4]} 2...
Nf6 {[%clk 0:02:58]} 3. e5 {[%clk 0:02:57.9]} 3... Nd5 {[%clk 0:02:58.2]} 4. Nc3
{[%clk 0:02:58.6]} 4... e6 {[%clk 0:02:58.4]} 5. g3 {[%clk 0:02:54.6]} 5... Nc6
{[%clk 0:02:57.8]} 6. Bg2 {[%clk 0:02:54.1]} 6... d6 {[%clk 0:02:57.8]} 7. exd6
{[%clk 0:02:51.8]} 7... Bxd6 {[%clk 0:02:58.7]} 8. O-O {[%clk 0:02:51.7]} 8...
O-O {[%clk 0:02:59]} 9. d3 {[%clk 0:02:33.7]} 9... Be7 {[%clk 0:02:54.1]} 10.
Re1 {[%clk 0:02:30.2]} 10... Nxc3 {[%clk 0:02:00.4]} 11. bxc3 {[%clk 0:02:29.3]}
11... Bf6 {[%clk 0:02:01.3]} 12. Bd2 {[%clk 0:02:24.9]} 12... Qd7 {[%clk
0:01:57.2]} 13. h4 {[%clk 0:01:59.4]} 13... b6 {[%clk 0:01:52.7]} 14. Ng5 {[%clk
0:01:56.2]} 14... Bxg5 {[%clk 0:01:47.3]} 15. hxg5 {[%clk 0:01:56.3]} 15... Bb7
{[%clk 0:01:47.5]} 16. Qh5 {[%clk 0:01:55.5]} 16... Ne7 {[%clk 0:01:44.6]} 17.
Bxb7 {[%clk 0:01:34.7]} 17... Qxb7 {[%clk 0:01:45.5]} 18. Re4 {[%clk 0:01:35]}
18... Ng6 {[%clk 0:01:43.7]} 19. Kh2 {[%clk 0:01:11.1]} 19... Rfd8 {[%clk
0:01:42.3]} 20. Rh1 {[%clk 0:01:08.9]} 20... Rac8 {[%clk 0:01:21.5]} 21. Kg1
{[%clk 0:01:08.7]} 21... Nf8 {[%clk 0:01:21.7]} 22. c4 {[%clk 0:01:08.7]} 22...
b5 {[%clk 0:01:05.1]} 23. Qd1 {[%clk 0:00:32.3]} 23... bxc4 {[%clk 0:00:55.8]}
24. Rxc4 {[%clk 0:00:32.1]} 24... Rd4 {[%clk 0:00:56.3]} 25. Rh4 {[%clk
0:00:27.5]} 25... Rd5 {[%clk 0:00:54.1]} 26. Bc3 {[%clk 0:00:25.5]} 26... Rxg5
{[%clk 0:00:50.4]} 27. Rh5 {[%clk 0:00:23.7]} 27... Rxh5 {[%clk 0:00:47.7]} 28.
Qxh5 {[%clk 0:00:23.8]} 28... Qd5 {[%clk 0:00:43.5]} 29. Qxd5 {[%clk 0:00:21.7]}
29... exd5 {[%clk 0:00:44.4]} 30. Ra4 {[%clk 0:00:22.2]} 30... Rc7 {[%clk
0:00:43.2]} 31. Be5 {[%clk 0:00:22.4]} 31... Rd7 {[%clk 0:00:41.5]} 32. Ra5
{[%clk 0:00:21.5]} 32... Ne6 {[%clk 0:00:42.1]} 33. Bb8 {[%clk 0:00:17.4]} 33...
h5 {[%clk 0:00:30.4]} 34. Bxa7 {[%clk 0:00:17.2]} 34... c4 {[%clk 0:00:26.5]}
35. d4 {[%clk 0:00:15.7]} 35... Rb7 {[%clk 0:00:23.4]} 36. Kg2 {[%clk
0:00:13.8]} 36... g5 {[%clk 0:00:23.1]} 37. a4 {[%clk 0:00:12.6]} 37... Rb2
{[%clk 0:00:23.4]} 38. Rxd5 {[%clk 0:00:11.6]} 38... Rxc2 {[%clk 0:00:23.2]} 39.
Bb8 {[%clk 0:00:10.6]} 39... Ra2 {[%clk 0:00:18.7]} 40. Ra5 {[%clk 0:00:06.8]}
40... c3 {[%clk 0:00:18.9]} 41. d5 {[%clk 0:00:07.2]} 41... c2 {[%clk
0:00:18.2]} 42. dxe6 {[%clk 0:00:07.7]} 42... c1=Q {[%clk 0:00:18.4]} 43. e7
{[%clk 0:00:08.1]} 43... Qc6+ {[%clk 0:00:18.3]} 44. Kh2 {[%clk 0:00:07.2]}
44... Rxf2+ {[%clk 0:00:16.8]} 0-1

[Event "*** Titled Tuesday Blitz"]
[Site "Chess.com"]
[Date "2020.12.01"]
[Round "9"]
[White "lacafi"]
[Black "dhaessel"]
[Result "0-1"]
[WhiteElo "2174"]
[BlackElo "1890"]
[TimeControl "180+1"]
[EndTime "11:44:09 PST"]
[Termination "dhaessel won by checkmate"]

1. d4 {[%clk 0:03:00.9]} 1... Nf6 {[%clk 0:02:59]} 2. Nf3 {[%clk 0:03:00.9]}
2... g6 {[%clk 0:02:57.2]} 3. c4 {[%clk 0:03:00.8]} 3... Bg7 {[%clk 0:02:56.5]}
4. Nc3 {[%clk 0:03:01.4]} 4... d5 {[%clk 0:02:56.6]} 5. cxd5 {[%clk 0:03:02.2]}
5... Nxd5 {[%clk 0:02:57]} 6. e4 {[%clk 0:03:03.1]} 6... Nxc3 {[%clk 0:02:57.4]}
7. bxc3 {[%clk 0:03:04]} 7... O-O {[%clk 0:02:53.8]} 8. Be2 {[%clk 0:03:04.3]}
8... c5 {[%clk 0:02:53.7]} 9. Be3 {[%clk 0:03:04.8]} 9... cxd4 {[%clk 0:02:49]}
10. cxd4 {[%clk 0:03:03.6]} 10... Qa5+ {[%clk 0:02:41.5]} 11. Qd2 {[%clk
0:02:47]} 11... Qxd2+ {[%clk 0:02:40.6]} 12. Bxd2 {[%clk 0:02:47.9]} 12... Rd8
{[%clk 0:02:33.9]} 13. Bc3 {[%clk 0:02:47.5]} 13... Nc6 {[%clk 0:02:32.9]} 14.
Rd1 {[%clk 0:02:46.9]} 14... Bg4 {[%clk 0:02:32.1]} 15. e5 {[%clk 0:02:44]}
15... Rac8 {[%clk 0:02:29.6]} 16. O-O {[%clk 0:02:41.1]} 16... Nxe5 {[%clk
0:02:24]} 17. dxe5 {[%clk 0:02:35.1]} 17... Rxd1 {[%clk 0:02:17.8]} 18. Rxd1
{[%clk 0:02:34.4]} 18... Rxc3 {[%clk 0:02:17.3]} 19. h3 {[%clk 0:02:28.8]} 19...
Bxf3 {[%clk 0:02:13.8]} 20. Bxf3 {[%clk 0:02:29.7]} 20... Bxe5 {[%clk
0:02:13.4]} 21. Bxb7 {[%clk 0:02:29.3]} 21... Ra3 {[%clk 0:02:10.6]} 22. Bd5
{[%clk 0:02:28.7]} 22... Ra5 {[%clk 0:01:58.5]} 23. Bb3 {[%clk 0:02:27.6]} 23...
Kg7 {[%clk 0:01:57.5]} 24. f3 {[%clk 0:02:20.4]} 24... Bd6 {[%clk 0:01:55.7]}
25. Kf2 {[%clk 0:02:19.7]} 25... Kf6 {[%clk 0:01:54.9]} 26. g3 {[%clk
0:02:14.6]} 26... h5 {[%clk 0:01:50.3]} 27. Rd3 {[%clk 0:02:05.1]} 27... h4
{[%clk 0:01:41.1]} 28. g4 {[%clk 0:02:01.4]} 28... Bg3+ {[%clk 0:01:32.5]} 29.
Kg2 {[%clk 0:01:42.1]} 29... Re5 {[%clk 0:01:30.8]} 30. Rd2 {[%clk 0:01:41.9]}
30... a5 {[%clk 0:01:25.8]} 31. Bd5 {[%clk 0:01:36.5]} 31... e6 {[%clk
0:01:22.5]} 32. Be4 {[%clk 0:01:36]} 32... Rc5 {[%clk 0:01:19.8]} 33. Rb2 {[%clk
0:01:22.7]} 33... Ke5 {[%clk 0:01:12.2]} 34. Rb7 {[%clk 0:01:14.1]} 34... f5
{[%clk 0:01:11.6]} 35. Bd3 {[%clk 0:01:10.9]} 35... Rc3 {[%clk 0:01:08.6]} 36.
Rd7 {[%clk 0:01:07.7]} 36... Ra3 {[%clk 0:01:03]} 37. Bc4 {[%clk 0:01:05.9]}
37... Rc3 {[%clk 0:01:01.4]} 38. Bb3 {[%clk 0:01:03.9]} 38... Re3 {[%clk
0:00:51.3]} 39. Re7 {[%clk 0:00:41.1]} 39... Re2+ {[%clk 0:00:49.4]} 40. Kg1
{[%clk 0:00:41]} 40... Kf6 {[%clk 0:00:34.6]} 41. Rb7 {[%clk 0:00:35.4]} 41...
Kg5 {[%clk 0:00:31]} 42. Re7 {[%clk 0:00:22.1]} 42... e5 {[%clk 0:00:30.3]} 43.
Be6 {[%clk 0:00:15.8]} 43... Kf4 {[%clk 0:00:29.5]} 44. gxf5 {[%clk 0:00:14.8]}
44... gxf5 {[%clk 0:00:28.9]} 45. Rf7 {[%clk 0:00:15.4]} 45... Kxf3 {[%clk
0:00:27]} 46. Rxf5+ {[%clk 0:00:11.3]} 46... Ke3 {[%clk 0:00:27.3]} 47. Rf7
{[%clk 0:00:06.5]} 47... Bf4 {[%clk 0:00:18]} 48. Rh7 {[%clk 0:00:03.6]} 48...
Kf3 {[%clk 0:00:16.1]} 49. Rxh4 {[%clk 0:00:01.2]} 49... Re1# {[%clk 0:00:15.5]}
0-1

[Event "*** Titled Tuesday Blitz"]
[Site "Chess.com"]
[Date "2020.12.01"]
[Round "9"]
[White "vladimirdamjanovic"]
[Black "Volodar_Murzin"]
[Result "0-1"]
[WhiteElo "2450"]
[BlackElo "2596"]
[TimeControl "180+1"]
[EndTime "11:44:13 PST"]
[Termination "Volodar_Murzin won by checkmate"]

1. e4 {[%clk 0:03:00.9]} 1... c5 {[%clk 0:02:21.7]} 2. Nf3 {[%clk 0:03:00.8]}
2... d6 {[%clk 0:02:16.7]} 3. Bb5+ {[%clk 0:03:00.8]} 3... Nd7 {[%clk
0:02:15.3]} 4. c3 {[%clk 0:03:00.8]} 4... a6 {[%clk 0:02:14.7]} 5. Ba4 {[%clk
0:03:01]} 5... b5 {[%clk 0:02:13.8]} 6. Bc2 {[%clk 0:03:00.8]} 6... Bb7 {[%clk
0:02:14.2]} 7. O-O {[%clk 0:03:00.2]} 7... Ngf6 {[%clk 0:02:13.2]} 8. Qe2 {[%clk
0:03:00.5]} 8... e5 {[%clk 0:02:05.4]} 9. a4 {[%clk 0:02:55.4]} 9... c4 {[%clk
0:01:55.1]} 10. axb5 {[%clk 0:02:23.9]} 10... axb5 {[%clk 0:01:53.9]} 11. Rxa8
{[%clk 0:02:23.8]} 11... Qxa8 {[%clk 0:01:53.2]} 12. d3 {[%clk 0:02:20.2]} 12...
Nc5 {[%clk 0:01:31.4]} 13. dxc4 {[%clk 0:02:15]} 13... bxc4 {[%clk 0:01:32.3]}
14. Qxc4 {[%clk 0:02:11.8]} 14... Nfxe4 {[%clk 0:01:29.7]} 15. b4 {[%clk
0:01:48.2]} 15... Nd7 {[%clk 0:01:04.2]} 16. Na3 {[%clk 0:01:33.8]} 16... d5
{[%clk 0:00:59.9]} 17. Qb3 {[%clk 0:01:22.4]} 17... Be7 {[%clk 0:00:41.6]} 18.
Nb5 {[%clk 0:01:17.1]} 18... Qc8 {[%clk 0:00:31.6]} 19. Bxe4 {[%clk 0:01:08.2]}
19... dxe4 {[%clk 0:00:29.4]} 20. Ng5 {[%clk 0:01:08.2]} 20... O-O {[%clk
0:00:25.2]} 21. Be3 {[%clk 0:00:55.6]} 21... h6 {[%clk 0:00:21.6]} 22. Nh3
{[%clk 0:00:51.7]} 22... Kh8 {[%clk 0:00:16.3]} 23. c4 {[%clk 0:00:48.3]} 23...
f5 {[%clk 0:00:16.4]} 24. Na7 {[%clk 0:00:41.1]} 24... Qa8 {[%clk 0:00:14.3]}
25. Ra1 {[%clk 0:00:28]} 25... f4 {[%clk 0:00:14.2]} 26. Bd2 {[%clk 0:00:25.8]}
26... e3 {[%clk 0:00:13.8]} 27. fxe3 {[%clk 0:00:22.8]} 27... Bxg2 {[%clk
0:00:14.3]} 28. Nf2 {[%clk 0:00:20.1]} 28... Bb7 {[%clk 0:00:12.2]} 29. e4
{[%clk 0:00:18.9]} 29... Nf6 {[%clk 0:00:11.5]} 30. c5 {[%clk 0:00:18.2]} 30...
Nxe4 {[%clk 0:00:11.5]} 31. b5 {[%clk 0:00:16.5]} 31... Nxc5 {[%clk 0:00:11.1]}
32. Qb2 {[%clk 0:00:12.4]} 32... Qc8 {[%clk 0:00:11]} 33. Qxe5 {[%clk
0:00:11.5]} 33... Bf6 {[%clk 0:00:11.6]} 34. Qe1 {[%clk 0:00:07.1]} 34... Bxa1
{[%clk 0:00:11.7]} 35. Qxa1 {[%clk 0:00:08]} 35... Qf5 {[%clk 0:00:11.3]} 36.
Bc3 {[%clk 0:00:07.5]} 36... Qg5+ {[%clk 0:00:11.3]} 37. Kf1 {[%clk 0:00:08]}
37... Ne4 {[%clk 0:00:11.1]} 38. Bxg7+ {[%clk 0:00:07.4]} 38... Qxg7 {[%clk
0:00:10]} 39. Qa4 {[%clk 0:00:03.8]} 39... Nxf2 {[%clk 0:00:08.8]} 40. Kxf2
{[%clk 0:00:03.8]} 40... Qg2+ {[%clk 0:00:09.2]} 41. Ke1 {[%clk 0:00:04.2]}
41... Re8+ {[%clk 0:00:09.9]} 42. Kd1 {[%clk 0:00:04.7]} 42... Bf3+ {[%clk
0:00:09.9]} 43. Kc1 {[%clk 0:00:04.7]} 43... Re1+ {[%clk 0:00:10.6]} 44. Qd1
{[%clk 0:00:04.5]} 44... Rxd1# {[%clk 0:00:11.5]} 0-1